[Event "Titled Tuesday Blitz May 25 2021"]
[White "Tomb, Maroun"]
[Black "Remizov, Yaroslav"]
[WhiteFideId "5300398"]
[BlackFideId "34134015"]
[WhiteElo "2508"]
[BlackElo "2367"]
[Result "0-1"]
[Round "06"]
[TimeControl "180+1"]
[Date "2021.05.25"]
[WhiteClock "0:00:21"]
[BlackClock "0:00:03"]

1. e4 {[%clk 0:03:00]}  Nc6 {[%clk 0:02:58]} 2. Nf3 {[%clk 0:02:54]}  d6 {[%clk 0:02:57]} 3. Be2 {[%clk 0:02:50]}  Nf6 {[%clk 0:02:56]} 4. d3 {[%clk 0:02:50]}  e5 {[%clk 0:02:55]} 5. Nbd2 {[%clk 0:02:51]}  Be7 {[%clk 0:02:56]} 6. c3 {[%clk 0:02:51]}  O-O {[%clk 0:02:56]} 7. b4 {[%clk 0:02:51]}  a5 {[%clk 0:02:48]} 8. b5 {[%clk 0:02:50]}  Nb8 {[%clk 0:02:49]} 9. a4 {[%clk 0:02:49]}  h6 {[%clk 0:02:47]} 10. d4 {[%clk 0:02:42]}  Nbd7 {[%clk 0:02:44]} 11. O-O {[%clk 0:02:39]}  Re8 {[%clk 0:02:44]} 12. Re1 {[%clk 0:02:39]}  Bf8 {[%clk 0:02:41]} 13. Bc4 {[%clk 0:02:35]}  Nb6 {[%clk 0:02:40]} 14. Bb3 {[%clk 0:02:34]}  Bg4 {[%clk 0:02:38]} 15. h3 {[%clk 0:02:34]}  Bh5 {[%clk 0:02:38]} 16. dxe5 {[%clk 0:02:27]}  dxe5 {[%clk 0:02:36]} 17. Qe2 {[%clk 0:02:28]}  Bc5 {[%clk 0:02:31]} 18. Nf1 {[%clk 0:02:26]}  Qe7 {[%clk 0:02:28]} 19. Ng3 {[%clk 0:02:26]}  Bg6 {[%clk 0:02:27]} 20. Nh4 {[%clk 0:02:23]}  Bh7 {[%clk 0:02:14]} 21. Nhf5 {[%clk 0:02:17]}  Qf8 {[%clk 0:02:13]} 22. Qf3 {[%clk 0:02:14]}  Nbd7 {[%clk 0:01:23]} 23. Rd1 {[%clk 0:01:53]}  Rad8 {[%clk 0:01:20]} 24. h4 {[%clk 0:01:38]}  Kh8 {[%clk 0:01:16]} 25. h5 {[%clk 0:01:37]}  Bxf5 {[%clk 0:00:58]} 26. Nxf5 {[%clk 0:01:35]}  Nh7 {[%clk 0:00:50]} 27. Nh4 {[%clk 0:01:17]}  Ndf6 {[%clk 0:00:44]} 28. Bb2 {[%clk 0:01:09]}  Ng5 {[%clk 0:00:42]} 29. Qf5 {[%clk 0:01:04]}  Ngxe4 {[%clk 0:00:39]} 30. Rxd8 {[%clk 0:00:59]}  Rxd8 {[%clk 0:00:23]} 31. Kh2 {[%clk 0:00:54]}  Bxf2 {[%clk 0:00:22]} 32. Nf3 {[%clk 0:00:51]}  Bg3+ {[%clk 0:00:22]} 33. Kg1 {[%clk 0:00:51]}  Qc5+ {[%clk 0:00:21]} 34. Kh1 {[%clk 0:00:49]}  Nf2+ {[%clk 0:00:21]} 35. Kg1 {[%clk 0:00:49]}  Rd1+ {[%clk 0:00:18]} 36. Bxd1 {[%clk 0:00:42]}  Nxd1+ {[%clk 0:00:19]} 37. Kh1 {[%clk 0:00:42]}  Nxb2 {[%clk 0:00:12]} 38. Qc8+ {[%clk 0:00:39]}  Ng8 {[%clk 0:00:12]} 39. Qg4 {[%clk 0:00:39]}  Bf4 {[%clk 0:00:12]} 40. g3 {[%clk 0:00:38]}  Nd3 {[%clk 0:00:12]} 41. Kg2 {[%clk 0:00:33]}  Qf2+ {[%clk 0:00:11]} 42. Kh3 {[%clk 0:00:34]}  Qe2 {[%clk 0:00:10]} 43. Kh4 {[%clk 0:00:29]}  Nf2 {[%clk 0:00:06]} 44. Re1 {[%clk 0:00:25]}  Qxe1 {[%clk 0:00:04]} 45. Nxe1 {[%clk 0:00:25]}  Nxg4 {[%clk 0:00:04]} 46. gxf4 {[%clk 0:00:25]}  Ne3 {[%clk 0:00:04]} 47. fxe5 {[%clk 0:00:26]}  Nd5 {[%clk 0:00:04]} 48. c4 {[%clk 0:00:25]}  Nb6 {[%clk 0:00:05]} 49. c5 {[%clk 0:00:22]}  Nxa4 {[%clk 0:00:05]} 50. Nd3 {[%clk 0:00:23]}  Ne7 {[%clk 0:00:04]} 51. Kg4 {[%clk 0:00:22]}  c6 {[%clk 0:00:05]} 52. b6 {[%clk 0:00:21]}  Nc3 {[%clk 0:00:05]} 53. Kf4 {[%clk 0:00:21]}  a4 {[%clk 0:00:06]} 54. Nb4 {[%clk 0:00:20]}  a3 {[%clk 0:00:06]} 55. Ke3 {[%clk 0:00:21]}  Ned5+ {[%clk 0:00:05]} 56. Kd4 {[%clk 0:00:20]}  Nxb4 {[%clk 0:00:05]} 57. e6 {[%clk 0:00:21]}  fxe6 {[%clk 0:00:03]} 0-1


[Site "https://www.chess.com"]

[Event "Titled Tuesday Blitz May 25 2021"]
[White "Vega Gutierrez, Sabrina"]
[Black "Dowgird, Filip"]
[WhiteFideId "2219026"]
[BlackFideId "1121235"]
[WhiteElo "2281"]
[BlackElo "2209"]
[Result "0-1"]
[Round "06"]
[TimeControl "180+1"]
[Date "2021.05.25"]
[WhiteClock "0:00:03"]
[BlackClock "0:01:13"]

1. e4 {[%clk 0:02:59]}  d6 {[%clk 0:02:59]} 2. d4 {[%clk 0:02:53]}  Nf6 {[%clk 0:03:00]} 3. Nc3 {[%clk 0:02:50]}  c6 {[%clk 0:02:59]} 4. Nf3 {[%clk 0:02:49]}  Bg4 {[%clk 0:02:59]} 5. h3 {[%clk 0:02:40]}  Bh5 {[%clk 0:02:59]} 6. Be2 {[%clk 0:02:39]}  e6 {[%clk 0:02:59]} 7. Be3 {[%clk 0:02:25]}  d5 {[%clk 0:02:57]} 8. e5 {[%clk 0:02:20]}  Nfd7 {[%clk 0:02:53]} 9. g4 {[%clk 0:02:09]}  Bg6 {[%clk 0:02:52]} 10. h4 {[%clk 0:02:10]}  h5 {[%clk 0:02:47]} 11. Ng5 {[%clk 0:01:57]}  c5 {[%clk 0:02:34]} 12. gxh5 {[%clk 0:01:36]}  Bf5 {[%clk 0:02:34]} 13. Nb5 {[%clk 0:01:31]}  Nc6 {[%clk 0:02:31]} 14. c3 {[%clk 0:01:29]}  a6 {[%clk 0:02:28]} 15. Nd6+ {[%clk 0:01:22]}  Bxd6 {[%clk 0:02:28]} 16. exd6 {[%clk 0:01:23]}  cxd4 {[%clk 0:02:26]} 17. cxd4 {[%clk 0:01:20]}  Qa5+ {[%clk 0:02:24]} 18. Kf1 {[%clk 0:01:18]}  f6 {[%clk 0:02:23]} 19. Nh3 {[%clk 0:01:16]}  Kf7 {[%clk 0:01:58]} 20. Nf4 {[%clk 0:01:00]}  Qb4 {[%clk 0:01:54]} 21. Bd3 {[%clk 0:00:46]}  Bxd3+ {[%clk 0:01:45]} 22. Qxd3 {[%clk 0:00:44]}  Nf8 {[%clk 0:01:45]} 23. Ng6 {[%clk 0:00:40]}  Rxh5 {[%clk 0:01:43]} 24. Nxf8 {[%clk 0:00:28]}  Rxf8 {[%clk 0:01:43]} 25. Rg1 {[%clk 0:00:26]}  Qb5 {[%clk 0:01:42]} 26. Qxb5 {[%clk 0:00:16]}  axb5 {[%clk 0:01:42]} 27. a4 {[%clk 0:00:16]}  bxa4 {[%clk 0:01:38]} 28. Rxa4 {[%clk 0:00:16]}  Rxh4 {[%clk 0:01:38]} 29. Ke2 {[%clk 0:00:16]}  Rd8 {[%clk 0:01:36]} 30. Rc1 {[%clk 0:00:15]}  Rxd6 {[%clk 0:01:35]} 31. Kd3 {[%clk 0:00:12]}  Rd7 {[%clk 0:01:31]} 32. b4 {[%clk 0:00:12]}  b5 {[%clk 0:01:21]} 33. Ra8 {[%clk 0:00:10]}  Nxb4+ {[%clk 0:01:21]} 34. Ke2 {[%clk 0:00:10]}  e5 {[%clk 0:01:13]} 35. dxe5 {[%clk 0:00:03]}  fxe5 {[%clk 0:01:13]} 0-1


[Site "https://www.chess.com"]

[Event "Titled Tuesday Blitz May 25 2021"]
[White "Visakh N R"]
[Black "zmeeed67"]
[WhiteFideId "25012223"]
[WhiteElo "2428"]
[BlackElo "2595"]
[Result "1-0"]
[Round "06"]
[TimeControl "180+1"]
[Date "2021.05.25"]
[WhiteClock "0:00:48"]
[BlackClock "0:00:01"]

1. e4 {[%clk 0:03:00]}  c5 {[%clk 0:03:00]} 2. Nf3 {[%clk 0:03:00]}  Nf6 {[%clk 0:03:00]} 3. Nc3 {[%clk 0:02:56]}  d5 {[%clk 0:03:00]} 4. exd5 {[%clk 0:02:53]}  Nxd5 {[%clk 0:03:01]} 5. Bb5+ {[%clk 0:02:53]}  Bd7 {[%clk 0:03:01]} 6. Bxd7+ {[%clk 0:02:52]}  Qxd7 {[%clk 0:03:01]} 7. O-O {[%clk 0:02:53]}  Nc6 {[%clk 0:03:00]} 8. Ne4 {[%clk 0:02:46]}  e6 {[%clk 0:02:59]} 9. d4 {[%clk 0:02:46]}  cxd4 {[%clk 0:02:54]} 10. Nxd4 {[%clk 0:02:47]}  Rd8 {[%clk 0:02:45]} 11. c3 {[%clk 0:02:33]}  Be7 {[%clk 0:02:43]} 12. Nxc6 {[%clk 0:02:30]}  Qxc6 {[%clk 0:02:42]} 13. Qg4 {[%clk 0:02:28]}  f5 {[%clk 0:01:24]} 14. Qxg7 {[%clk 0:02:23]}  Kd7 {[%clk 0:01:24]} 15. Ng3 {[%clk 0:02:13]}  h5 {[%clk 0:01:17]} 16. c4 {[%clk 0:02:00]}  Qxc4 {[%clk 0:01:13]} 17. Rd1 {[%clk 0:01:42]}  h4 {[%clk 0:01:06]} 18. Bg5 {[%clk 0:01:35]}  Qb4 {[%clk 0:00:28]} 19. Nxf5 {[%clk 0:01:28]}  Rdg8 {[%clk 0:00:06]} 20. Qxe7+ {[%clk 0:01:11]}  Qxe7 {[%clk 0:00:06]} 21. Bxe7 {[%clk 0:01:11]}  exf5 {[%clk 0:00:06]} 22. Bf6 {[%clk 0:00:47]}  Rh6 {[%clk 0:00:03]} 23. Rxd5+ {[%clk 0:00:48]}  Ke6 {[%clk 0:00:03]} 24. Rd8 {[%clk 0:00:48]}  Rg7 {[%clk 0:00:01]} 1-0


[Site "https://www.chess.com"]

[Event "Titled Tuesday Blitz May 25 2021"]
[White "Weetik, Vjacheslav"]
[Black "Nitish Belurkar"]
[WhiteFideId "4153472"]
[BlackFideId "5084768"]
[WhiteElo "2469"]
[BlackElo "2306"]
[Result "1/2-1/2"]
[Round "06"]
[TimeControl "180+1"]
[Date "2021.05.25"]
[WhiteClock "0:00:01"]
[BlackClock "0:00:13"]

1. e4 {[%clk 0:03:00]}  d5 {[%clk 0:02:58]} 2. exd5 {[%clk 0:03:00]}  Nf6 {[%clk 0:02:58]} 3. Nf3 {[%clk 0:03:01]}  Nxd5 {[%clk 0:02:57]} 4. d4 {[%clk 0:03:01]}  Bf5 {[%clk 0:02:57]} 5. Bd3 {[%clk 0:03:00]}  Bxd3 {[%clk 0:02:57]} 6. Qxd3 {[%clk 0:03:01]}  e6 {[%clk 0:02:58]} 7. O-O {[%clk 0:02:57]}  Be7 {[%clk 0:02:59]} 8. c4 {[%clk 0:02:54]}  Nf6 {[%clk 0:02:59]} 9. Nc3 {[%clk 0:02:55]}  O-O {[%clk 0:02:58]} 10. Bf4 {[%clk 0:02:54]}  c5 {[%clk 0:02:58]} 11. Rad1 {[%clk 0:02:53]}  cxd4 {[%clk 0:02:58]} 12. Nxd4 {[%clk 0:02:51]}  Qc8 {[%clk 0:02:58]} 13. Ndb5 {[%clk 0:02:39]}  Na6 {[%clk 0:02:56]} 14. b3 {[%clk 0:02:35]}  Qc6 {[%clk 0:02:44]} 15. Be5 {[%clk 0:02:14]}  Nc5 {[%clk 0:02:36]} 16. Qg3 {[%clk 0:01:58]}  a6 {[%clk 0:02:23]} 17. Nd4 {[%clk 0:01:39]}  Qc8 {[%clk 0:02:21]} 18. Rfe1 {[%clk 0:01:34]}  Rd8 {[%clk 0:02:17]} 19. h3 {[%clk 0:01:34]}  Ne8 {[%clk 0:01:52]} 20. Qf3 {[%clk 0:01:15]}  Bf6 {[%clk 0:01:50]} 21. Qg3 {[%clk 0:01:00]}  Bxe5 {[%clk 0:01:44]} 22. Qxe5 {[%clk 0:00:59]}  Qc7 {[%clk 0:01:33]} 23. Qe3 {[%clk 0:00:56]}  Nf6 {[%clk 0:01:30]} 24. Nf3 {[%clk 0:00:56]}  h6 {[%clk 0:01:27]} 25. Ne5 {[%clk 0:00:48]}  Rac8 {[%clk 0:01:24]} 26. Qg3 {[%clk 0:00:24]}  Ncd7 {[%clk 0:00:59]} 27. Nxd7 {[%clk 0:00:22]}  Rxd7 {[%clk 0:01:00]} 28. Qxc7 {[%clk 0:00:12]}  Rcxc7 {[%clk 0:01:01]} 29. Kf1 {[%clk 0:00:12]}  Kf8 {[%clk 0:01:00]} 30. Rxd7 {[%clk 0:00:10]}  Rxd7 {[%clk 0:01:00]} 31. Ke2 {[%clk 0:00:11]}  Ke7 {[%clk 0:01:00]} 32. Rd1 {[%clk 0:00:10]}  Rxd1 {[%clk 0:00:55]} 33. Kxd1 {[%clk 0:00:11]}  Nd7 {[%clk 0:00:54]} 34. Kd2 {[%clk 0:00:12]}  f5 {[%clk 0:00:55]} 35. Ke3 {[%clk 0:00:12]}  g5 {[%clk 0:00:55]} 36. Kd4 {[%clk 0:00:11]}  Kd6 {[%clk 0:00:54]} 37. b4 {[%clk 0:00:12]}  e5+ {[%clk 0:00:53]} 38. Kd3 {[%clk 0:00:12]}  Kc6 {[%clk 0:00:47]} 39. g4 {[%clk 0:00:12]}  fxg4 {[%clk 0:00:46]} 40. hxg4 {[%clk 0:00:12]}  Nf6 {[%clk 0:00:46]} 41. f3 {[%clk 0:00:13]}  b5 {[%clk 0:00:33]} 42. cxb5+ {[%clk 0:00:09]}  axb5 {[%clk 0:00:33]} 43. a3 {[%clk 0:00:08]}  Nd7 {[%clk 0:00:26]} 44. Ke4 {[%clk 0:00:07]}  Nb6 {[%clk 0:00:21]} 45. Kxe5 {[%clk 0:00:06]}  Nc4+ {[%clk 0:00:22]} 46. Kf6 {[%clk 0:00:05]}  Nxa3 {[%clk 0:00:22]} 47. Kg6 {[%clk 0:00:05]}  Nc2 {[%clk 0:00:22]} 48. Kxh6 {[%clk 0:00:06]}  Nd4 {[%clk 0:00:22]} 49. Kxg5 {[%clk 0:00:02]}  Nxf3+ {[%clk 0:00:22]} 50. Kf4 {[%clk 0:00:02]}  Nd4 {[%clk 0:00:20]} 51. g5 {[%clk 0:00:01]}  Kd6 {[%clk 0:00:17]} 52. Ke4 {[%clk 0:00:02]}  Nc2 {[%clk 0:00:15]} 53. Nxb5+ {[%clk 0:00:02]}  Ke7 {[%clk 0:00:15]} 54. Nd4 {[%clk 0:00:02]}  Nxb4 {[%clk 0:00:15]} 55. Kf5 {[%clk 0:00:01]}  Nd5 {[%clk 0:00:14]} 56. g6 {[%clk 0:00:02]}  Ke8 {[%clk 0:00:14]} 57. Kg5 {[%clk 0:00:01]}  Ne7 {[%clk 0:00:12]} 58. g7 {[%clk 0:00:01]}  Kf7 {[%clk 0:00:13]} 1/2-1/2


[Site "https://www.chess.com"]

[Event "Titled Tuesday Blitz May 25 2021"]
[White "Woodward, Andy"]
[Black "Hebden, Mark L"]
[WhiteFideId "30953499"]
[BlackFideId "400084"]
[WhiteElo "2604"]
[BlackElo "2457"]
[Result "0-1"]
[Round "06"]
[TimeControl "180+1"]
[Date "2021.05.25"]
[WhiteClock "0:00:18"]
[BlackClock "0:00:31"]

1. d4 {[%clk 0:03:00]}  Nf6 {[%clk 0:02:59]} 2. c4 {[%clk 0:02:59]}  g6 {[%clk 0:02:59]} 3. Nc3 {[%clk 0:02:58]}  Bg7 {[%clk 0:02:59]} 4. g3 {[%clk 0:02:58]}  O-O {[%clk 0:02:58]} 5. Bg2 {[%clk 0:02:58]}  d6 {[%clk 0:02:56]} 6. Nf3 {[%clk 0:02:58]}  Nc6 {[%clk 0:02:55]} 7. O-O {[%clk 0:02:57]}  Rb8 {[%clk 0:02:54]} 8. h3 {[%clk 0:02:55]}  a6 {[%clk 0:02:53]} 9. e4 {[%clk 0:02:55]}  b5 {[%clk 0:02:52]} 10. cxb5 {[%clk 0:02:56]}  axb5 {[%clk 0:02:52]} 11. Re1 {[%clk 0:02:57]}  e6 {[%clk 0:02:47]} 12. Bg5 {[%clk 0:02:52]}  b4 {[%clk 0:02:41]} 13. Na4 {[%clk 0:02:43]}  Qd7 {[%clk 0:02:39]} 14. Rc1 {[%clk 0:02:36]}  Ba6 {[%clk 0:02:30]} 15. Bxf6 {[%clk 0:02:06]}  Bxf6 {[%clk 0:02:28]} 16. e5 {[%clk 0:02:07]}  Bg7 {[%clk 0:02:22]} 17. d5 {[%clk 0:01:49]}  Nd8 {[%clk 0:02:14]} 18. dxe6 {[%clk 0:01:31]}  Nxe6 {[%clk 0:02:08]} 19. exd6 {[%clk 0:01:31]}  cxd6 {[%clk 0:02:04]} 20. b3 {[%clk 0:01:09]}  Bb5 {[%clk 0:01:59]} 21. Re4 {[%clk 0:01:05]}  Bxa4 {[%clk 0:01:56]} 22. bxa4 {[%clk 0:01:06]}  d5 {[%clk 0:01:51]} 23. Re2 {[%clk 0:00:57]}  d4 {[%clk 0:01:38]} 24. h4 {[%clk 0:00:55]}  Rfd8 {[%clk 0:01:36]} 25. Bh3 {[%clk 0:00:53]}  d3 {[%clk 0:01:34]} 26. Rd2 {[%clk 0:00:27]}  Bc3 {[%clk 0:01:31]} 27. Bxe6 {[%clk 0:00:25]}  fxe6 {[%clk 0:01:28]} 28. Ng5 {[%clk 0:00:25]}  Qd5 {[%clk 0:01:20]} 29. Nh3 {[%clk 0:00:15]}  e5 {[%clk 0:01:18]} 30. Kh2 {[%clk 0:00:09]}  Rbc8 {[%clk 0:01:11]} 31. a5 {[%clk 0:00:07]}  Bxd2 {[%clk 0:01:10]} 32. Rxc8 {[%clk 0:00:05]}  Rxc8 {[%clk 0:01:09]} 33. Qxd2 {[%clk 0:00:06]}  Rc2 {[%clk 0:01:07]} 34. Qxb4 {[%clk 0:00:07]}  d2 {[%clk 0:01:06]} 35. Qb8+ {[%clk 0:00:06]}  Kg7 {[%clk 0:01:04]} 36. Qa7+ {[%clk 0:00:07]}  Qf7 {[%clk 0:01:03]} 37. Qe3 {[%clk 0:00:04]}  Qf5 {[%clk 0:00:55]} 38. Qa7+ {[%clk 0:00:02]}  Kg8 {[%clk 0:00:53]} 39. Qa8+ {[%clk 0:00:02]}  Rc8 {[%clk 0:00:52]} 40. Qd5+ {[%clk 0:00:01]}  Kg7 {[%clk 0:00:47]} 41. Qxd2 {[%clk 0:00:02]}  Rc2 {[%clk 0:00:47]} 42. Qe3 {[%clk 0:00:03]}  Rxa2 {[%clk 0:00:45]} 43. Qa7+ {[%clk 0:00:03]}  Qf7 {[%clk 0:00:44]} 44. Qe3 {[%clk 0:00:02]}  Qf6 {[%clk 0:00:39]} 45. Qa7+ {[%clk 0:00:01]}  Kh6 {[%clk 0:00:38]} 46. Qe3+ {[%clk 0:00:02]}  Kg7 {[%clk 0:00:38]} 47. Ng5 {[%clk 0:00:02]}  Qxf2+ {[%clk 0:00:35]} 48. Qxf2 {[%clk 0:00:02]}  Rxf2+ {[%clk 0:00:35]} 49. Kh3 {[%clk 0:00:03]}  Ra2 {[%clk 0:00:35]} 50. Ne6+ {[%clk 0:00:04]}  Kf6 {[%clk 0:00:35]} 51. Nc5 {[%clk 0:00:04]}  Rxa5 {[%clk 0:00:34]} 52. Nb3 {[%clk 0:00:04]}  Rd5 {[%clk 0:00:33]} 53. Kg4 {[%clk 0:00:03]}  Rd3 {[%clk 0:00:30]} 54. Nc5 {[%clk 0:00:03]}  Rd4+ {[%clk 0:00:30]} 55. Kf3 {[%clk 0:00:04]}  Ke7 {[%clk 0:00:29]} 56. Ne4 {[%clk 0:00:04]}  Rxe4 {[%clk 0:00:27]} 57. Kxe4 {[%clk 0:00:05]}  Ke6 {[%clk 0:00:27]} 58. g4 {[%clk 0:00:04]}  h6 {[%clk 0:00:27]} 59. h5 {[%clk 0:00:03]}  g5 {[%clk 0:00:26]} 60. Ke3 {[%clk 0:00:02]}  Kd5 {[%clk 0:00:27]} 61. Kf2 {[%clk 0:00:02]}  e4 {[%clk 0:00:27]} 62. Ke2 {[%clk 0:00:02]}  Kd4 {[%clk 0:00:27]} 63. Kd2 {[%clk 0:00:02]}  e3+ {[%clk 0:00:27]} 64. Ke2 {[%clk 0:00:03]}  Ke4 {[%clk 0:00:28]} 65. Ke1 {[%clk 0:00:04]}  Kf4 {[%clk 0:00:28]} 66. Ke2 {[%clk 0:00:05]}  Kxg4 {[%clk 0:00:28]} 67. Kxe3 {[%clk 0:00:05]}  Kxh5 {[%clk 0:00:29]} 68. Kf3 {[%clk 0:00:06]}  Kh4 {[%clk 0:00:29]} 69. Kg2 {[%clk 0:00:07]}  g4 {[%clk 0:00:29]} 70. Kh2 {[%clk 0:00:08]}  Kg5 {[%clk 0:00:29]} 71. Kg2 {[%clk 0:00:09]}  h5 {[%clk 0:00:30]} 72. Kf1 {[%clk 0:00:10]}  h4 {[%clk 0:00:30]} 73. Kg2 {[%clk 0:00:11]}  h3+ {[%clk 0:00:31]} 74. Kh2 {[%clk 0:00:12]}  Kf4 {[%clk 0:00:30]} 75. Kg1 {[%clk 0:00:13]}  g3 {[%clk 0:00:31]} 76. Kh1 {[%clk 0:00:14]}  g2+ {[%clk 0:00:30]} 77. Kg1 {[%clk 0:00:14]}  Kf3 {[%clk 0:00:31]} 78. Kh2 {[%clk 0:00:15]}  Kf2 {[%clk 0:00:31]} 79. Kxh3 {[%clk 0:00:16]}  g1=Q {[%clk 0:00:31]} 80. Kh4 {[%clk 0:00:17]}  Qg6 {[%clk 0:00:31]} 81. Kh3 {[%clk 0:00:18]}  Qg3# {[%clk 0:00:31]} 0-1


[Site "https://www.chess.com"]

[Event "Titled Tuesday Blitz May 25 2021"]
[White "Xiong, Jeffery"]
[Black "Vogel, Roven"]
[WhiteFideId "2047640"]
[BlackFideId "12908088"]
[WhiteElo "2724"]
[BlackElo "2516"]
[Result "1-0"]
[Round "06"]
[TimeControl "180+1"]
[Date "2021.05.25"]
[WhiteClock "0:01:25"]
[BlackClock "0:00:34"]

1. c4 {[%clk 0:03:00]}  e6 {[%clk 0:02:59]} 2. Nc3 {[%clk 0:03:00]}  d5 {[%clk 0:02:59]} 3. d4 {[%clk 0:02:59]}  a6 {[%clk 0:02:57]} 4. cxd5 {[%clk 0:02:56]}  exd5 {[%clk 0:02:56]} 5. Bf4 {[%clk 0:02:56]}  Nf6 {[%clk 0:02:56]} 6. e3 {[%clk 0:02:52]}  c5 {[%clk 0:02:55]} 7. Nf3 {[%clk 0:02:50]}  c4 {[%clk 0:02:55]} 8. Ne5 {[%clk 0:02:46]}  b5 {[%clk 0:02:55]} 9. a3 {[%clk 0:02:43]}  Be7 {[%clk 0:02:54]} 10. Be2 {[%clk 0:02:35]}  O-O {[%clk 0:02:53]} 11. Qc2 {[%clk 0:02:29]}  Bb7 {[%clk 0:02:51]} 12. Bf3 {[%clk 0:02:29]}  Nbd7 {[%clk 0:02:49]} 13. Rd1 {[%clk 0:02:23]}  Nb6 {[%clk 0:02:48]} 14. O-O {[%clk 0:02:07]}  Bd6 {[%clk 0:02:42]} 15. Qf5 {[%clk 0:01:59]}  Qc8 {[%clk 0:02:33]} 16. Qg5 {[%clk 0:01:54]}  Qe6 {[%clk 0:02:25]} 17. Qg3 {[%clk 0:01:53]}  Rad8 {[%clk 0:02:14]} 18. Rfe1 {[%clk 0:01:51]}  Ne4 {[%clk 0:02:12]} 19. Bxe4 {[%clk 0:01:46]}  dxe4 {[%clk 0:02:11]} 20. f3 {[%clk 0:01:47]}  f6 {[%clk 0:02:07]} 21. Ng4 {[%clk 0:01:47]}  Bxf4 {[%clk 0:02:01]} 22. exf4 {[%clk 0:01:48]}  h5 {[%clk 0:01:51]} 23. f5 {[%clk 0:01:46]}  Qd6 {[%clk 0:01:37]} 24. Nh6+ {[%clk 0:01:45]}  Kh8 {[%clk 0:01:35]} 25. Qg6 {[%clk 0:01:46]}  gxh6 {[%clk 0:01:30]} 26. Qxh6+ {[%clk 0:01:47]}  Kg8 {[%clk 0:01:31]} 27. Qg6+ {[%clk 0:01:48]}  Kh8 {[%clk 0:01:30]} 28. Qxh5+ {[%clk 0:01:49]}  Kg8 {[%clk 0:01:30]} 29. Qg6+ {[%clk 0:01:50]}  Kh8 {[%clk 0:01:30]} 30. Nxe4 {[%clk 0:01:43]}  Qf4 {[%clk 0:00:36]} 31. Nxf6 {[%clk 0:01:39]}  Qh4 {[%clk 0:00:35]} 32. Re7 {[%clk 0:01:26]}  Rg8 {[%clk 0:00:34]} 33. Rh7+ {[%clk 0:01:25]} 1-0


[Site "https://www.chess.com"]

[Event "Titled Tuesday Blitz May 25 2021"]
[White "Zierk, Steven"]
[Black "Sadhwani, Raunak"]
[WhiteFideId "2034255"]
[BlackFideId "35093487"]
[WhiteElo "2502"]
[BlackElo "2514"]
[Result "0-1"]
[Round "06"]
[TimeControl "180+1"]
[Date "2021.05.25"]
[WhiteClock "0:00:01"]
[BlackClock "0:00:06"]

1. e4 {[%clk 0:03:00]}  c5 {[%clk 0:03:00]} 2. Nf3 {[%clk 0:03:00]}  Nf6 {[%clk 0:03:01]} 3. e5 {[%clk 0:02:55]}  Nd5 {[%clk 0:03:01]} 4. Nc3 {[%clk 0:02:56]}  e6 {[%clk 0:03:02]} 5. Nxd5 {[%clk 0:02:54]}  exd5 {[%clk 0:03:03]} 6. d4 {[%clk 0:02:54]}  Nc6 {[%clk 0:03:03]} 7. dxc5 {[%clk 0:02:53]}  Bxc5 {[%clk 0:03:03]} 8. Qxd5 {[%clk 0:02:54]}  d6 {[%clk 0:03:03]} 9. exd6 {[%clk 0:02:50]}  Qb6 {[%clk 0:03:03]} 10. Qe4+ {[%clk 0:02:30]}  Be6 {[%clk 0:03:03]} 11. Qh4 {[%clk 0:02:21]}  Nb4 {[%clk 0:02:26]} 12. Bd3 {[%clk 0:02:20]}  Nxd3+ {[%clk 0:02:26]} 13. cxd3 {[%clk 0:02:20]}  O-O {[%clk 0:02:23]} 14. O-O {[%clk 0:02:14]}  Bxd6 {[%clk 0:02:23]} 15. Be3 {[%clk 0:02:02]}  Qxb2 {[%clk 0:01:58]} 16. Bd4 {[%clk 0:02:01]}  Qb5 {[%clk 0:01:50]} 17. Rab1 {[%clk 0:01:54]}  Qd5 {[%clk 0:01:46]} 18. Qe4 {[%clk 0:01:39]}  b6 {[%clk 0:01:37]} 19. a4 {[%clk 0:01:36]}  Rfe8 {[%clk 0:01:29]} 20. Rfe1 {[%clk 0:01:24]}  Rac8 {[%clk 0:01:26]} 21. h4 {[%clk 0:01:16]}  h6 {[%clk 0:01:24]} 22. Be5 {[%clk 0:01:06]}  Qxe4 {[%clk 0:01:08]} 23. dxe4 {[%clk 0:00:54]}  Be7 {[%clk 0:01:07]} 24. Rec1 {[%clk 0:00:33]}  Bd7 {[%clk 0:00:59]} 25. Rxc8 {[%clk 0:00:19]}  Rxc8 {[%clk 0:01:00]} 26. a5 {[%clk 0:00:20]}  b5 {[%clk 0:01:00]} 27. Bd4 {[%clk 0:00:18]}  a6 {[%clk 0:00:53]} 28. Ne5 {[%clk 0:00:16]}  Be6 {[%clk 0:00:46]} 29. f3 {[%clk 0:00:16]}  Bxh4 {[%clk 0:00:41]} 30. Bb6 {[%clk 0:00:11]}  Be7 {[%clk 0:00:36]} 31. Nd3 {[%clk 0:00:11]}  Rc4 {[%clk 0:00:31]} 32. Kf2 {[%clk 0:00:10]}  f5 {[%clk 0:00:27]} 33. exf5 {[%clk 0:00:07]}  Bxf5 {[%clk 0:00:28]} 34. Rd1 {[%clk 0:00:07]}  b4 {[%clk 0:00:20]} 35. g4 {[%clk 0:00:07]}  Bxd3 {[%clk 0:00:13]} 36. Rxd3 {[%clk 0:00:08]}  Bc5+ {[%clk 0:00:14]} 37. Ke2 {[%clk 0:00:07]}  Kh7 {[%clk 0:00:09]} 38. Rd5 {[%clk 0:00:05]}  Bxb6 {[%clk 0:00:08]} 39. axb6 {[%clk 0:00:05]}  Rc6 {[%clk 0:00:09]} 40. b7 {[%clk 0:00:05]}  Rb6 {[%clk 0:00:09]} 41. Rd6 {[%clk 0:00:05]}  Rxb7 {[%clk 0:00:08]} 42. Rxa6 {[%clk 0:00:06]}  b3 {[%clk 0:00:08]} 43. Ra1 {[%clk 0:00:06]}  b2 {[%clk 0:00:09]} 44. Rb1 {[%clk 0:00:06]}  Kg6 {[%clk 0:00:09]} 45. f4 {[%clk 0:00:06]}  Rb4 {[%clk 0:00:06]} 46. Kf3 {[%clk 0:00:06]}  Kf6 {[%clk 0:00:07]} 47. Kg3 {[%clk 0:00:06]}  Ke6 {[%clk 0:00:07]} 48. Kh4 {[%clk 0:00:05]}  Rb5 {[%clk 0:00:07]} 49. f5+ {[%clk 0:00:05]}  Kf6 {[%clk 0:00:07]} 50. Kh5 {[%clk 0:00:04]}  Rb4 {[%clk 0:00:07]} 51. Kh4 {[%clk 0:00:03]}  Rb3 {[%clk 0:00:07]} 52. g5+ {[%clk 0:00:01]}  hxg5+ {[%clk 0:00:07]} 53. Kh5 {[%clk 0:00:01]}  Rb4 {[%clk 0:00:06]} 0-1


[Site "https://www.chess.com"]